bitfinex-derivatives/quotes_ETHF0:USTF0_20250918
["timestamp","ask_amount","ask_price","bid_price","bid_amount"]
[1758185738949,0.1979,4604.1,4603.6,0.318]
[1758185739150,0.6946,4604.1,4604.0,0.8523]
[1758185740353,0.4065,4604.1,4604.0,0.8523]
[1758185740652,0.1979,4604.1,4604.0,0.8523]
[1758185741955,0.6946,4604.1,4604.0,0.5205]
[1758185744955,0.6946,4603.2,4603.1,0.5205]
[1758185745151,0.6946,4603.2,4603.1,0.318]
[1758185745448,0.6946,4603.2,4602.0,0.1239]
[1758185745449,4.91184001,4603.2,4602.6,0.318]
[1758185745657,0.1979,4602.1,4602.0,0.8523]
[1758185746054,0.2881,4602.4,4602.0,0.8523]
[1758185746055,0.2881,4602.8,4602.0,0.5343]
[1758185746251,0.6946,4602.8,4602.7,0.2025]
[1758185746858,0.6946,4602.8,4602.0,0.3429]
[1758185747052,0.6946,4602.8,4602.1,0.318]
[1758185748553,3.2078,4602.9,4602.1,0.318]
[1758185748554,0.4065,4602.2,4602.1,0.318]
[1758185748757,0.6946,4602.2,4601.9,0.0217]
[1758185748959,0.6946,4602.2,4602.0,0.318]
[1758185750258,0.6946,4602.2,4601.6,0.318]
[1758185751364,0.6946,4602.2,4601.5,0.1239]
[1758185751365,0.6946,4602.2,4602.1,0.7284]
[1758185751762,0.4065,4602.2,4602.1,0.7284]
[1758185752063,0.1979,4602.2,4602.1,0.7284]
[1758185753362,0.4065,4602.2,4602.1,0.7284]
[1758185753660,0.6946,4602.2,4601.6,0.318]
[1758185756261,0.6946,4602.2,4601.4,0.0217]
[1758185756469,0.6946,4602.2,4601.5,0.2886]
[1758185758364,0.4065,4602.2,4601.5,0.1176]
[1758185758564,0.2112,4601.7,4601.6,0.6869]
[1758185760170,0.6955,4601.7,4601.6,0.6869]
[1758185760359,0.6955,4601.7,4601.6,0.4899]
[1758185760562,0.4058,4601.4,4601.3,0.6869]
[1758185761776,0.2897,4601.9,4601.3,0.3983]
[1758185761966,0.6955,4601.9,4601.8,0.3983]
[1758185762169,0.6955,4601.9,4601.8,0.6869]
[1758185764380,0.219,4602.0,4601.8,0.6869]
[1758185764674,3.2078,4602.8,4602.2,0.3983]
[1758185764866,0.2112,4602.6,4602.5,0.8045]
[1758185765068,3.419,4602.8,4602.7,0.3983]
[1758185765272,3.419,4602.8,4602.7,0.6904]
[1758185765273,3.7366,4602.8,4602.7,0.6904]
[1758185766371,3.9465,4602.8,4602.7,0.6904]
[1758185766977,3.9465,4602.8,4602.5,0.2921]
[1758185767280,4.1655,4602.8,4602.5,0.2921]
[1758185767573,4.1655,4602.8,4602.1,0.2921]
[1758185768372,0.7379,4602.2,4601.6,0.2921]
[1758185771179,0.9569,4602.1,4602.0,0.2016]
[1758185771382,0.9569,4602.1,4601.5,0.1258]
[1758185771579,0.4203,4601.7,4601.6,0.4937]
[1758185771880,0.7379,4601.7,4601.6,0.6887]
[1758185774377,0.2104,4601.7,4601.6,0.6887]
[1758185774572,0.219,4602.0,4601.6,0.3966]
[1758185774776,0.2104,4601.8,4601.7,0.6887]
[1758185775174,0.7379,4601.8,4601.7,0.6887]
[1758185775983,0.4203,4601.8,4601.7,0.6887]
[1758185777978,0.7379,4601.8,4601.7,0.6887]
[1758185782881,0.7379,4601.8,4601.3,0.2921]
[1758185782882,0.3176,4601.7,4601.3,0.2921]
[1758185783087,0.7379,4601.3,4601.2,0.3138]
[1758185783386,1.24468469,4601.3,4601.2,0.2921]
[1758185783584,1.24468469,4601.3,4600.6,3.2078]
[1758185783788,0.528,4600.8,4600.7,0.6887]
[1758185783988,0.7379,4600.8,4600.7,0.6887]
[1758185790690,0.7379,4600.8,4600.7,0.4937]
[1758185791786,0.7379,4600.8,4600.7,0.6887]
[1758185795697,3.2078,4601.2,4601.1,0.4038]
[1758185795890,3.2078,4601.2,4601.1,0.7166]
[1758185796199,3.407,4601.2,4601.1,0.7166]
[1758185796394,3.2078,4601.2,4601.1,0.7166]
[1758185797095,3.407,4602.0,4601.9,0.1974]
[1758185797397,3.626,4602.0,4601.9,0.7166]
[1758185798294,4.1239,4602.0,4601.9,0.7166]
[1758185798898,0.9161,4602.0,4601.9,0.7166]
[1758185801397,0.6971,4602.0,4601.9,0.7166]
[1758185801598,0.9161,4602.0,4601.9,0.7166]
[1758185801797,0.6971,4602.0,4601.9,0.7166]
[1758185802108,0.9161,4602.0,4601.9,0.7166]
[1758185807203,0.616,4602.0,4601.9,0.7166]
[1758185808097,0.9161,4602.0,4601.9,0.7166]
[1758185809301,0.9161,4602.0,4601.9,0.5102]
[1758185809493,4.1239,4602.0,4601.9,0.5102]
[1758185811695,3.9049,4602.0,4601.9,0.5102]
[1758185811895,4.1239,4602.0,4601.9,0.5102]
[1758185813004,4.2406,4602.0,4601.9,0.3128]
[1758185814705,4.2406,4602.0,4601.5,0.0217]
[1758185815204,4.2406,4602.0,4601.6,0.2921]
[1758185815600,0.219,4601.9,4601.5,0.0217]
[1758185815801,0.7364,4601.7,4601.6,0.4993]
[1758185816408,0.7364,4601.7,4601.5,0.0217]
[1758185816610,0.7364,4601.7,4601.6,0.6905]
[1758185816906,0.9554,4601.7,4601.6,0.6905]
[1758185817305,0.4183,4601.7,4601.6,0.6905]
[1758185817507,0.2078,4601.7,4601.6,0.6905]
[1758185819004,3.5259,4602.0,4601.6,0.6905]
[1758185819197,0.1166,4603.0,4601.6,0.6905]
[1758185819198,3.2078,4603.0,4602.4,0.2072]
[1758185819400,3.4156,4603.0,4602.9,0.6905]
[1758185819602,4.14034351,4603.0,4602.9,0.6905]
[1758185819906,3.6346,4603.0,4602.9,0.6905]
[1758185820104,3.4156,4603.0,4602.9,0.6905]
[1758185824013,3.7337,4603.0,4602.9,0.6905]
[1758185824214,4.1632,4603.0,4602.9,0.6905]
[1758185824614,4.66911556,4603.0,4602.9,0.6905]
[1758185825107,4.1632,4603.0,4602.9,0.6905]
[1758185825307,4.66923786,4603.0,4602.5,0.1245]
[1758185825611,4.2841,4603.0,4602.5,0.1245]
[1758185825806,4.2841,4603.0,4602.6,0.2902]
[1758185827215,4.2841,4603.0,4602.5,0.1245]
[1758185827414,4.2841,4603.0,4602.6,0.2902]
[1758185827715,0.1963,4602.9,4602.8,0.1934]
[1758185827914,0.7041,4602.9,4602.8,0.6761]
[1758185829112,0.4069,4602.9,4602.8,0.6761]
[1758185829316,3.2078,4603.0,4602.9,0.6761]
[1758185829810,0.7041,4603.6,4603.5,0.5058]
[1758185830413,0.7041,4603.6,4603.5,0.796]
[1758185831115,0.4069,4603.2,4603.1,0.2902]
[1758185831418,0.7041,4602.8,4602.7,0.6761]
[1758185833017,0.2106,4602.8,4602.7,0.6761]
[1758185833223,0.5078,4603.1,4603.0,0.5058]
[1758185833413,0.7041,4603.1,4603.0,0.796]
[1758185834518,0.7041,4603.1,4603.0,0.6761]
[1758185836322,0.7041,4603.1,4603.0,0.796]
[1758185836616,0.4069,4603.1,4603.0,0.796]
[1758185837422,0.2106,4603.1,4603.0,0.796]
[1758185837823,0.5078,4603.4,4603.3,0.3859]
[1758185838019,0.5078,4603.4,4603.3,0.6761]
[1758185838217,0.2106,4603.4,4603.3,0.6761]
[1758185839020,0.5078,4603.4,4603.3,0.6761]
[1758185839228,0.7041,4603.4,4603.3,0.6761]
[1758185840317,3.2078,4603.7,4603.5,0.1199]
[1758185840525,3.4184,4603.7,4603.6,0.6761]
[1758185840921,0.5078,4603.7,4603.6,0.6761]
[1758185841524,0.2972,4604.4,4603.7,0.2902]
[1758185841824,0.7041,4604.4,4604.3,0.4836]
[1758185843128,0.7041,4604.4,4604.3,0.2902]
[1758185843327,0.4069,4604.0,4603.9,0.6761]
[1758185843529,0.7041,4604.0,4603.9,0.4836]
[1758185846728,0.7041,4604.0,4603.9,0.6761]
[1758185847135,0.7041,4604.0,4603.5,0.1199]
[1758185847136,3.2078,4604.4,4604.3,0.6761]
[1758185847335,4.1309,4604.4,4604.3,0.4836]
[1758185847936,3.9119,4604.4,4604.3,0.4836]
[1758185848137,4.1309,4604.4,4604.3,0.4836]
[1758185848436,4.1309,4604.4,4604.0,0.2902]
[1758185849235,4.1309,4604.4,4603.6,0.2902]
[1758185849442,3.9119,4604.4,4604.3,0.6761]
[1758185849737,0.7041,4605.2,4605.1,0.3859]
[1758185849941,0.2106,4605.2,4605.1,0.6761]
[1758185850133,0.7041,4605.2,4605.1,0.6761]
[1758185852234,0.7041,4605.2,4605.1,0.4836]
[1758185852538,0.7041,4605.2,4604.6,0.2902]
[1758185852733,0.2106,4604.7,4604.6,0.6761]
[1758185852938,0.7041,4604.7,4604.6,0.6761]
[1758185853349,0.7041,4604.7,4604.0,0.1199]
[1758185853531,0.7041,4604.7,4604.1,0.2902]
[1758185853935,0.7041,4604.7,4604.6,0.1934]
[1758185854137,0.7041,4604.7,4604.6,0.6761]
[1758185854342,0.219,4604.7,4604.6,0.6761]
[1758185854842,0.4296,4604.7,4604.6,0.6761]
[1758185855145,0.2106,4605.1,4605.0,0.796]
[1758185855340,0.4296,4605.1,4605.0,0.796]
[1758185855543,0.2106,4605.1,4605.0,0.796]
[1758185856041,0.5289,4605.1,4605.0,0.796]
[1758185857935,0.7202,4605.1,4605.0,0.796]
[1758185860838,0.7202,4605.1,4604.5,0.1199]
[1758185861045,0.7038,4604.7,4604.6,0.517]
[1758185861230,0.7038,4604.7,4604.6,0.7116]
[1758185862641,0.3855,4604.7,4604.6,0.7116]
[1758185863938,0.7038,4604.7,4604.6,0.7116]
[1758185866338,0.7038,4604.7,4604.6,0.3116]
[1758185866537,0.7038,4604.7,4604.4,0.0217]
[1758185866738,0.7038,4604.7,4604.5,0.3116]
[1758185867140,0.7038,4604.7,4604.6,0.2054]
[1758185867449,0.7038,4604.7,4604.6,0.517]
[1758185869140,0.7038,4604.7,4604.5,0.3116]
[1758185869640,3.4268,4604.9,4604.4,0.0217]
[1758185869641,0.7038,4604.5,4604.4,0.0217]
[1758185869841,0.7038,4604.5,4604.4,0.5387]
[1758185870045,0.7038,4604.5,4604.4,0.7333]
[1758185870246,0.3855,4604.5,4604.4,0.7333]
[1758185872348,0.1942,4604.5,4604.4,0.7333]
[1758185874251,0.3855,4604.5,4604.4,0.7333]
[1758185874446,0.6734,4604.5,4604.4,0.7333]
[1758185874748,0.6734,4604.5,4604.4,0.5387]
[1758185875144,0.6734,4604.5,4604.4,0.3333]
[1758185875346,0.7901,4604.5,4604.4,0.3333]
[1758185875949,0.6734,4604.5,4604.4,0.5369]
[1758185877251,0.7901,4604.5,4604.4,0.0217]
[1758185878346,1.29515096,4604.5,4604.4,0.0217]
[1758185878549,0.7901,4604.5,4604.4,0.0217]
[1758185878748,0.7901,4604.5,4604.4,0.3286]
[1758185879048,0.6734,4604.5,4604.4,0.5322]
[1758185879247,1.39751213,4604.5,4604.4,0.5322]
[1758185879750,1.39751251,4604.5,4604.4,0.5322]
[1758185880151,1.51421251,4604.5,4604.4,0.3286]
[1758185880348,1.51421251,4604.5,4604.0,0.1199]
[1758185880657,0.693,4604.2,4604.1,0.5105]
[1758185881043,0.693,4604.2,4603.6,0.3069]
[1758185881044,4.40592597,4604.2,4603.6,0.3069]
[1758185881351,0.72412597,4604.1,4603.7,0.3069]
[1758185881556,3.2078,4604.2,4604.1,0.3069]
[1758185881749,3.93171024,4604.2,4604.1,0.7077]
[1758185882148,4.14131024,4604.2,4604.1,0.7077]
[1758185882662,1.41691024,4604.2,4603.6,0.3069]
[1758185882850,0.693,4603.7,4603.6,0.7077]
[1758185884746,0.693,4603.7,4603.1,0.3069]
[1758185884951,0.2096,4603.2,4603.1,0.7077]
[1758185885557,0.219,4603.6,4603.1,0.7077]
[1758185885754,0.5135,4603.5,4603.4,0.4171]
[1758185885961,0.5135,4603.5,4603.4,0.7305]
[1758185886154,0.2057,4603.5,4603.4,0.7305]
[1758185887957,0.5135,4603.5,4603.4,0.7305]
[1758185888762,0.2057,4603.5,4603.4,0.7305]
[1758185888960,0.7169,4603.5,4603.4,0.7305]
[1758185889764,0.7169,4603.5,4603.4,0.5248]
[1758185889956,0.7169,4603.5,4603.2,0.3351]
[1758185889957,4.54742976,4603.5,4603.2,0.3351]
[1758185890261,0.50422976,4603.4,4603.2,0.4388]
[1758185890560,0.2057,4603.4,4603.3,0.7305]
[1758185890758,3.4135,4603.5,4603.4,0.3134]
[1758185890954,3.91761842,4603.5,4603.4,0.7305]
[1758185891354,3.8359,4603.5,4603.4,0.7305]
[1758185891556,4.1437,4603.5,4603.4,0.7305]
[1758185893759,3.9247,4603.5,4603.4,0.7305]
[1758185893960,4.1437,4603.5,4603.4,0.7305]
[1758185894164,3.9247,4603.5,4603.4,0.7305]
[1758185894368,4.1437,4603.5,4603.4,0.7305]
[1758185894858,3.9247,4603.5,4603.4,0.7305]
[1758185895058,4.1437,4603.5,4603.4,0.7305]
[1758185896268,4.2622,4603.5,4603.2,0.0217]
[1758185896662,4.2622,4603.5,4603.3,0.3134]
[1758185896961,4.2622,4603.5,4603.2,0.3351]
[1758185897163,4.2622,4603.5,4603.2,0.0217]
[1758185898169,4.2622,4603.5,4603.2,0.3351]
[1758185898469,4.2622,4603.5,4603.2,0.0217]
[1758185899164,4.2622,4603.5,4603.3,0.3134]
[1758185899362,4.2622,4603.5,4603.4,0.2114]
[1758185899565,4.2622,4603.5,4603.2,0.0217]
[1758185899864,0.219,4603.4,4603.2,0.0217]
[1758185900065,0.9359,4603.4,4603.3,0.7305]
[1758185900664,0.9359,4603.4,4603.3,0.5248]
[1758185901867,0.7169,4603.4,4603.3,0.5248]
[1758185902070,3.2078,4603.5,4603.3,0.4171]
[1758185902368,0.4247,4603.5,4603.4,0.7305]
[1758185903270,0.2057,4603.5,4603.4,0.7305]
[1758185903469,0.4247,4603.5,4603.4,0.7305]
[1758185907170,0.2057,4603.5,4603.4,0.7305]
[1758185909765,0.5135,4603.5,4603.4,0.7305]
[1758185913075,0.7169,4603.5,4603.4,0.7305]
[1758185913966,0.7169,4603.5,4603.4,0.5248]
[1758185914169,1.34298867,4603.5,4603.2,0.0217]
[1758185914367,0.7169,4603.3,4603.2,0.0217]
[1758185915277,0.7169,4603.3,4603.0,0.3134]
[1758185915578,0.7169,4603.3,4602.6,0.3156]
[1758185915778,0.2108,4602.8,4602.7,0.7214]
[1758185916367,0.3034,4603.4,4602.7,0.4058]
[1758185916567,0.2108,4602.9,4602.8,0.7214]
[1758185920981,0.3034,4603.5,4602.9,0.3156]
[1758185921283,0.7332,4603.4,4603.3,0.7214]
[1758185921786,0.2108,4603.4,4603.3,0.7214]
[1758185921985,0.4298,4603.4,4603.3,0.7214]
[1758185924284,0.7332,4603.4,4603.3,0.7214]
[1758185926300,0.939,4603.4,4603.3,0.7214]
[1758185927688,0.939,4603.4,4603.3,0.3156]
[1758185927889,1.44682065,4603.4,4603.3,0.3156]
[1758185928095,0.2108,4602.8,4602.7,0.7214]
[1758185928295,0.5142,4602.8,4602.7,0.7214]
[1758185929102,0.2108,4602.8,4602.7,0.7214]
[1758185930904,0.5142,4602.8,4602.7,0.7214]
[1758185931794,0.2108,4602.8,4602.7,0.7214]
[1758185936707,0.2032,4603.2,4603.1,0.7288]
[1758185936901,3.2078,4603.6,4603.5,0.8492]
[1758185937207,3.71561596,4603.6,4603.5,0.8492]
[1758185937407,3.2078,4603.6,4603.5,0.8492]
[1758185938911,3.91876746,4603.6,4603.5,0.8492]
[1758185939208,4.23197199,4603.6,4603.5,0.8492]
[1758185939506,4.42537199,4603.6,4603.5,0.8492]
[1758185941406,4.11217115,4603.6,4603.5,0.8492]
[1758185942107,3.411,4603.6,4603.5,0.8492]
[1758185942504,3.2078,4603.6,4603.5,0.8492]
[1758185942700,3.2078,4604.1,4603.5,0.8492]
[1758185942905,0.3132,4604.4,4604.0,0.5387]
[1758185943108,3.4268,4604.5,4604.3,0.3105]
[1758185943411,4.1366,4604.5,4604.4,0.7288]
[1758185943713,4.42497062,4604.5,4604.4,0.7288]
[1758185943906,4.64397062,4604.5,4604.4,0.7288]
[1758185944211,4.1366,4604.5,4604.4,0.7288]
[1758185945010,4.1366,4604.5,4604.4,0.3105]
[1758185949510,4.2532,4604.5,4604.4,0.3105]
[1758185950712,4.0342,4604.5,4604.4,0.3105]
[1758185950919,4.2532,4604.5,4604.4,0.3105]
[1758185951916,4.2532,4604.5,4604.0,0.1204]
[1758185952216,0.3963,4604.2,4604.1,0.2012]
[1758185952411,0.6957,4604.2,4604.1,0.7055]
[1758185952611,0.4195,4604.2,4604.1,0.7055]
[1758185953712,0.7189,4604.2,4604.1,0.7055]
[1758185953918,0.2005,4604.2,4604.1,0.7055]
[1758185955416,0.219,4604.3,4604.1,0.7055]
[1758185955715,0.4195,4604.3,4604.2,0.7055]
[1758185956120,0.9147,4604.3,4604.2,0.7055]
[1758185956306,0.6957,4604.3,4604.2,0.7055]
[1758185960422,0.6957,4604.3,4603.6,0.3036]
[1758185960613,0.6957,4604.1,4604.0,0.2012]
[1758185960813,0.6957,4604.1,4604.0,0.5048]
[1758185961518,0.6957,4604.1,4604.0,0.7055]
[1758185962611,0.3963,4604.1,4604.0,0.8313]
[1758185963014,0.2005,4604.1,4604.0,0.8313]
[1758185965319,0.219,4604.3,4604.1,0.3036]
[1758185965519,0.4195,4604.3,4604.2,0.7055]
[1758185965715,0.2005,4604.3,4604.2,0.7055]
[1758185968225,0.4999,4604.3,4604.2,0.7055]
[1758185969722,0.2005,4604.3,4604.2,0.7055]
[1758185971522,3.2078,4604.5,4604.3,0.3036]
[1758185971827,3.4268,4604.5,4604.4,0.7055]
[1758185972028,3.93448047,4604.5,4604.4,0.7055]
[1758185972528,3.7157801,4604.5,4604.4,0.7055]
[1758185972831,0.5079801,4604.5,4604.4,0.7055]
[1758185973025,3.2078,4604.8,4604.7,0.7055]
[1758185973222,0.50795772,4604.8,4604.7,0.7055]
[1758185975232,0.70845772,4604.8,4604.7,0.7055]
[1758185975531,1.22955772,4604.8,4604.7,0.7055]
[1758185976732,1.22955772,4604.8,4604.7,0.5048]
[1758185978331,1.22955772,4604.8,4604.7,0.7064]
[1758185979134,0.7216,4604.8,4604.7,0.7064]
[1758185981229,0.9406,4604.8,4604.7,0.7064]
[1758185984433,0.7216,4604.8,4604.7,0.7064]
[1758185984636,0.2005,4604.8,4604.7,0.7064]
[1758185984835,0.4195,4604.8,4604.7,0.7064]
[1758185985128,0.7216,4604.8,4604.7,0.7064]
[1758185992535,0.7216,4604.8,4604.7,0.5048]
[1758185992740,0.7216,4604.8,4604.1,0.2968]
[1758185993040,0.4158,4604.3,4604.2,0.6907]
[1758185993338,0.7279,4604.3,4604.2,0.90788]
[1758185993537,0.4158,4604.3,4604.2,0.90788]
[1758185993738,0.4158,4604.3,4604.2,0.6907]
[1758185993939,0.2068,4604.3,4604.2,0.6907]
[1758185995542,3.4268,4604.9,4604.2,0.6907]
[1758185995837,3.4268,4604.9,4604.3,0.7268]
[1758185995838,0.5159,4604.4,4604.3,0.7268]
[1758185997145,0.2019,4604.4,4604.3,0.7268]
[1758185998142,0.395,4604.4,4604.3,0.7268]
[1758185998344,0.709,4604.4,4604.3,0.7268]
[1758186000139,0.709,4604.4,4604.1,0.0217]
[1758186000343,3.9168,4604.4,4604.1,0.0217]
[1758186000549,0.395,4604.2,4604.1,0.0217]
[1758186000846,1.21483248,4604.2,4604.1,0.0217]
[1758186001741,5.43203248,4604.2,4603.3,0.3057]
[1758186001941,0.314,4603.3,4603.2,0.3057]
[1758186002142,0.709,4603.3,4603.2,0.5173]
[1758186002844,0.709,4603.3,4602.6,0.3057]
[1758186003138,3.2078,4603.4,4603.3,0.7268]
[1758186003339,0.4209,4603.9,4603.8,0.2116]
[1758186003543,0.4209,4603.9,4603.8,0.7268]
[1758186003946,0.928,4603.9,4603.8,0.7268]
[1758186004847,3.2078,4604.0,4603.8,0.7268]
[1758186005051,3.2078,4604.0,4603.9,0.7268]
[1758186005342,0.219,4604.4,4603.9,0.7268]
[1758186005648,0.219,4604.4,4604.3,0.7002]
[1758186006149,0.2027,4604.6,4604.5,0.1164]
[1758186006338,3.4268,4604.8,4604.5,0.5214]
[1758186006538,3.2078,4604.8,4604.5,0.5214]
[1758186006942,3.2078,4604.8,4604.7,0.405]
[1758186007140,3.2078,4604.8,4604.7,0.7002]
[1758186007444,3.4105,4604.8,4604.7,0.7002]
[1758186009251,3.7044,4604.8,4604.7,0.7002]
[1758186009452,3.8982,4604.8,4604.7,0.7002]
[1758186014755,0.6904,4604.8,4604.7,0.7002]
[1758186015146,0.2939,4604.7,4604.2,3.2078]
[1758186015351,0.4966,4604.3,4604.2,3.6128]
[1758186015743,0.2939,4604.7,4604.2,3.908]
[1758186015952,0.6904,4604.9,4604.8,0.2073]
[1758186016150,0.6904,4604.9,4604.8,0.5025]
[1758186017360,0.6904,4604.9,4604.8,0.7002]
[1758186018661,0.6904,4604.9,4604.6,0.2952]
[1758186019062,0.6904,4604.9,4604.2,3.2078]
[1758186019360,0.6904,4604.8,4604.7,0.2073]
[1758186019561,0.6904,4604.8,4604.7,0.5025]
[1758186019765,0.3965,4604.8,4604.3,0.2952]
[1758186020064,0.6904,4604.4,4604.3,0.7002]
[1758186020465,0.3965,4604.4,4604.3,0.7002]
[1758186020858,0.5129,4605.0,4604.4,0.2952]
[1758186021166,0.9094,4605.0,4604.9,0.7002]
[1758186021864,0.6904,4605.0,4604.9,0.7002]
[1758186022163,0.9094,4605.0,4604.9,0.7002]
[1758186022565,1.40964687,4605.0,4604.9,0.7002]
[1758186027568,1.19064687,4605.0,4604.9,0.7002]
[1758186029865,1.19064687,4605.0,4604.9,0.5025]
[1758186032668,0.6904,4605.0,4604.9,0.5025]
[1758186034076,0.6904,4605.0,4604.9,0.7002]
[1758186034276,1.19160057,4605.0,4604.9,0.7002]
[1758186049883,3.5019,4605.7,4604.9,0.7002]
[1758186050187,3.2078,4605.7,4605.5,0.8352]
[1758186050383,0.203,4605.6,4605.5,0.8352]
[1758186050783,0.4971,4605.6,4605.5,0.8352]
[1758186051289,0.203,4605.6,4605.5,0.8352]
[1758186051991,0.7053,4605.6,4605.5,0.8352]
[1758186053279,0.7053,4605.6,4605.5,0.7138]
[1758186053477,0.7053,4605.6,4605.0,0.1214]
[1758186053478,1.20732122,4605.6,4605.0,0.1214]
[1758186053691,0.7053,4605.6,4605.1,0.3053]
[1758186053982,0.7053,4605.6,4605.0,0.8352]
[1758186053983,0.7053,4605.1,4605.0,0.8352]
[1758186054580,0.7053,4605.1,4605.0,0.7138]
[1758186054785,0.7053,4605.1,4605.0,0.5128]
[1758186055087,0.7053,4605.1,4605.0,0.3053]
[1758186056190,0.7021,4604.7,4604.6,3.6164]
[1758186056584,0.7021,4604.7,4604.6,3.9196]
[1758186058194,0.8561,4605.4,4605.3,0.4086]
[1758186058392,1.35815771,4605.4,4605.3,0.7118]
[1758186058892,1.35815771,4605.4,4605.3,0.5066]
[1758186059794,1.41892873,4605.4,4605.3,0.7118]
[1758186059990,0.7021,4605.4,4605.3,0.7118]
[1758186060290,0.4007,4605.4,4605.3,0.7118]
[1758186061086,0.203,4605.4,4605.3,0.7118]
[1758186061591,0.7021,4605.4,4605.3,0.3032]
[1758186061993,0.93155925,4605.4,4605.3,0.3032]
[1758186062294,0.93155925,4605.4,4604.6,3.4258]
[1758186062489,0.7021,4604.8,4604.6,3.2078]
[1758186062696,0.4991,4604.5,4604.4,0.5066]
[1758186062896,0.7021,4604.5,4604.4,0.7118]
[1758186063292,8.69136148,4604.5,4604.3,0.0217]
[1758186063597,0.7021,4603.7,4603.6,0.5066]
[1758186064189,0.7021,4603.7,4603.6,0.3032]
[1758186064392,0.63012481,4603.7,4603.1,0.3032]
[1758186064597,0.7021,4603.2,4603.1,0.7118]
[1758186065302,0.4007,4603.2,4603.1,0.7118]
[1758186066990,0.3014,4603.5,4603.1,0.7118]
[1758186067186,0.3179,4603.9,4603.2,0.306]
[1758186067392,0.2116,4603.9,4603.8,0.6965]
[1758186067591,0.4296,4603.9,4603.8,0.6965]
[1758186067889,3.2078,4604.5,4604.4,0.1962]
[1758186068090,5.10867884,4604.5,4604.4,0.6965]
[1758186068386,4.36100927,4604.5,4604.4,0.6965]
[1758186068590,4.89690927,4604.5,4604.4,0.6965]
[1758186068800,4.3957112,4604.5,4604.4,0.6965]
[1758186069094,3.8598112,4604.5,4604.4,0.6965]
[1758186069294,3.6539112,4604.5,4604.4,0.6965]
[1758186069592,3.8598112,4604.5,4604.4,0.6965]
[1758186069796,3.9432,4604.5,4604.4,0.6965]
[1758186073599,3.9432,4604.5,4604.4,0.5022]
[1758186074897,3.9432,4604.5,4604.4,0.6965]
[1758186075593,4.1612,4604.5,4604.4,0.6965]
[1758186076095,3.9432,4604.5,4604.4,0.6965]
[1758186076304,4.1612,4604.5,4604.4,0.6965]
[1758186077590,8.99603948,4604.5,4603.6,0.306]
[1758186077790,0.7354,4603.2,4603.1,0.5022]
[1758186079404,0.7354,4603.2,4602.5,0.1161]
[1758186079599,0.7354,4603.2,4602.7,0.306]
[1758186079800,0.7354,4603.2,4602.6,0.306]
[1758186080198,0.7354,4603.2,4603.1,0.6965]
[1758186080199,0.4175,4603.2,4603.1,0.6965]
[1758186080599,0.7354,4603.2,4603.1,0.6965]
[1758186082796,0.3179,4603.6,4603.2,0.306]
[1758186082999,0.3179,4603.6,4603.5,0.306]
[1758186083000,0.7354,4603.6,4603.5,0.306]
[1758186083407,0.7354,4603.6,4603.5,0.5022]
[1758186083907,0.7354,4603.6,4603.5,0.306]
[1758186084509,0.7354,4603.6,4603.5,0.5022]
[1758186090512,0.7354,4603.6,4603.0,0.1234]
[1758186090713,0.7354,4603.6,4603.1,0.306]
[1758186090919,0.219,4603.7,4602.6,0.1962]
[1758186090920,0.2116,4602.7,4602.6,0.1962]
[1758186091114,0.7354,4602.7,4602.6,0.5022]
[1758186091507,0.7354,4602.7,4602.6,0.6965]
[1758186091712,0.5369,4603.2,4602.7,0.306]
[1758186091913,3.4268,4603.4,4603.3,0.6965]
[1758186092716,3.6384,4603.4,4603.3,0.6965]
[1758186092920,0.2116,4603.4,4603.3,0.6965]
[1758186096218,3.2078,4604.0,4603.9,0.3872]
[1758186096413,3.6362,4604.0,4603.9,0.6777]
[1758186096618,3.9461,4604.0,4603.9,0.6777]
[1758186096918,4.1536,4604.0,4603.9,0.6777]
[1758186098225,4.1536,4604.0,4603.9,0.4863]
[1758186104432,4.2715,4604.0,4603.9,0.2905]
[1758186104729,4.2715,4604.0,4603.6,0.2905]
[1758186105326,4.2715,4604.0,4603.9,0.1958]
[1758186105528,4.2715,4604.0,4603.9,0.4863]
[1758186105729,4.1536,4604.0,4603.9,0.4863]
[1758186105934,3.9346,4604.0,4603.9,0.4863]
[1758186106137,4.1536,4604.0,4603.9,0.4863]
[1758186107933,3.9346,4604.0,4603.9,0.4863]
[1758186108135,4.1536,4604.0,4603.9,0.4863]
[1758186108638,0.3099,4604.3,4603.9,0.6777]
[1758186108938,0.9458,4604.9,4604.8,0.6777]
[1758186109135,1.44670102,4604.9,4604.8,0.6777]
[1758186109938,1.68271551,4604.9,4604.8,0.6777]
[1758186110138,0.9458,4604.9,4604.8,0.6777]
[1758186110338,0.9458,4604.9,4604.5,0.1231]
[1758186110638,0.9458,4604.9,4604.1,0.2905]
[1758186110834,0.2094,4604.2,4604.1,0.6777]
[1758186111238,0.5193,4604.2,4604.1,0.6777]
[1758186112129,0.7268,4604.2,4604.1,0.6777]
[1758186112335,0.7268,4604.2,4604.1,0.4863]
[1758186112928,0.7268,4604.2,4604.1,0.2905]
[1758186113131,0.4169,4604.2,4603.2,0.2905]
[1758186113335,0.3099,4603.2,4602.5,1.66979131]
[1758186113536,0.3099,4603.2,4602.7,0.508]
[1758186113537,0.7268,4602.8,4602.7,0.508]
[1758186113737,0.7268,4602.8,4602.7,0.4863]